Cogmind - Beta 14 @@@ ROGUE MODE // 2024.11.18 @ 17:07:30 Player: Thqwib Result: Destroyed by as-39219 with Assembled Rifle Performance ------------- Evolutions (0) 0 Regions Visited (4) 800 Robots Destroyed (12) 60 Value Destroyed (176) 176 Prototype IDs (25) 500 Alien Tech Used (0) 0 Bonus (300) 300 TOTAL SCORE: 1836 Bonus ------- Aligned with FarCom 300 Cogmind --------- Core Integrity 0/250 Matter 300/300 Energy 74/100 System Corruption 10% Temperature Cool (87) Movement Core (50) Location -9/Mines Parts ------- > --- POWER (1) -------- (None) > --- PROPULSION (2) --- (None) > --- UTILITY (2) ------ (None) > --- WEAPON (2) ------- (None) > --- INVENTORY (5) ---- Visual Processing Unit Signal Interpreter Medium Laser Latent Energy Streamer Light Assault Rifle Peak State ------------ > --- POWER ------------ Light Ion Engine > --- PROPULSION ------- Aluminum Leg Aluminum Leg > --- UTILITY ---------- Medium Storage Unit Light Armor Plating > --- WEAPON ----------- Light EM Pulse Cannon Light Assault Rifle > --- INVENTORY -------- Wheel Compact Wheel Visual Processing Unit Signal Interpreter Medium Laser Latent Energy Streamer Light Assault Rifle [Rating: 9] Favorites ----------- Power Light Ion Engine Engine Light Ion Engine Propulsion Aluminum Leg Leg Aluminum Leg Wheel Wheel Utility Medium Storage Unit Device Seismic Detector Storage Medium Storage Unit Protection Light Armor Plating Weapon Medium Laser Energy Gun Medium Laser Energy Cannon Light EM Pulse Cannon Ballistic Gun Light Assault Rifle Build | -11 -10 -10 -10 -9 ------- Run | Yrd Mat Min Exi Min Slots Evolved . | . . . . . Power . | . . . . . Propulsion . | . . . . . Utility . | . . . . . Weapon . | . . . . . Parts Attached 12 | . 3 3 . 6 Power 1 | . . 1 . . Engine 1 | . . 1 . . Core . | . . . . . Reactor . | . . . . . Propulsion 4 | . . 2 . 2 Treads . | . . . . . Leg 2 | . . 2 . . Wheel 2 | . . . . 2 Hover . | . . . . . Flight . | . . . . . Utility 3 | . 2 . . 1 Device 1 | . 1 . . . Storage 1 | . 1 . . . Processor . | . . . . . Hackware . | . . . . . Protection 1 | . . . . 1 Artifact . | . . . . . Weapon 4 | . 1 . . 3 Energy Gun 1 | . . . . 1 Energy Cannon 1 | . . . . 1 Ballistic Gun 2 | . 1 . . 1 Ballistic Cannon . | . . . . . Launcher . | . . . . . Special Weapon . | . . . . . Impact Weapon . | . . . . . Slashing Weapon . | . . . . . Piercing Weapon . | . . . . . Special Melee Weapon . | . . . . . Unidentified Prototypes . | . . . . . Parts Lost 4 | . . 1 . 3 Power 1 | . . 1 . . Propulsion 1 | . . . . 1 Utility 1 | . . . . 1 Weapon 1 | . . . . 1 Highest Loss Streak 3 | . . 1 . 3 To Critical Strikes . | . . . . . Average Slot Usage (%) 97 | . 98 100 91 99 Engine 14 | . 14 14 14 14 Leg 25 | . 28 28 28 19 Wheel 2 | . . . . 8 Device 7 | . 12 14 5 . Storage 14 | . 14 14 14 14 Protection 4 | . . . . 13 Energy Gun 14 | . 20 14 14 9 Energy Cannon 1 | . . . . 4 Ballistic Gun 12 | . 7 14 14 14 Peak Build Rating 9 | . 8 7 7 9 Average Rating 7 | . 7 6 6 8 On Entrance 6 | 6 6 7 7 7 Naked Turns 4 | . . . . 4 Heaviest Build 21 | 14 20 19 17 21 Greatest Support 26 | 20 20 20 20 26 Greatest Overweight (x) . | . . . . . Average Overweight (x) . | . . . . . Largest Inventory Capacity 10 | . 10 10 10 10 Average Capacity 9 | . 9 10 10 9 Most Carried 9 | . 9 8 8 7 Average Carried 7 | . 7 7 7 6 Final Capacity 10 | 8 10 10 10 5 Final Carried 8 | 6 8 7 8 5 Class Distribution -------------------- 100% | Mutant Dominant Class ---------------- Mutant | -10/Materials Mutant | -10/Mines Mutant | -10/Exiles Mutant | -9/Mines Resources | -11 -10 -10 -10 -9 ----------- Run | Yrd Mat Min Exi Min Matter Collected 357 | 200 35 45 . 77 Remotely . | . . . . . Salvage Created 293 | . 107 95 . 91 Parts 18 | . 10 2 . 6 Haulers Intercepted 1 | . 1 . . . Recyclers Shooed . | . . . . . Parts Field Recycled . | . . . . . Retrieved Matter . | . . . . . Parts Self-Destructed . | . . . . . Prevented . | . . . . . Kills | -11 -10 -10 -10 -9 ------- Run | Yrd Mat Min Exi Min Combat Hostiles Destroyed 10 | . 3 2 . 5 Guns 9 | . 3 2 . 4 Cannons 1 | . . . . 1 Classes Destroyed 6 | . 3 1 . 2 Tunneler 1 | . . . . 1 Hauler 1 | . 1 . . . Watcher 1 | . 1 . . . Swarmer 7 | . 3 . . 4 Grunt 2 | . . 2 . . Assembled 1 | . . . . 1 Best Kill Streak 5 | . 3 2 . 5 Combat Bots Only 4 | . 3 2 . 4 Max Kills in Single Turn 2 | . 1 1 . 2 Gunslinging . | . . . . . Exploded . | . . . . . Melee . | . . . . . Uniques/NPCs Destroyed . | . . . . . Combat | -11 -10 -10 -10 -9 -------- Run | Yrd Mat Min Exi Min Hostile Shots Fired 82 | . 10 20 . 52 Missed 14 | . 2 . . 12 Damage Taken 860 | . 67 250 . 543 Core 261 | . 18 33 . 210 Absorbed by Shields . | . . . . . Core Remaining (%) 100 | 100 . . . . Volleys Fired 38 | . 9 13 . 16 Largest 2 | . 2 2 . 2 Hottest 100 | . 100 70 . 76 Shots Fired 77 | . 18 27 . 32 Gun 71 | . 18 27 . 26 Cannon 6 | . . . . 6 Launcher . | . . . . . Special . | . . . . . Kinetic 34 | . 5 13 . 16 Thermal 37 | . 13 14 . 10 Explosive . | . . . . . Electromagnetic 6 | . . . . 6 Robot Hit Streak 8 | . 6 8 . 6 Robot Miss Streak 3 | . 2 3 . 3 Penetration Max . | . . . . . Secondary Targets 1 | . . . . 1 Max Gunslinging Chain 1 | . . . . 1 Shots Hit Robots 44 | . 11 16 . 17 Core Hits 23 | . 7 7 . 9 Critical Kills . | . . . . . Critical Parts Destroyed . | . . . . . Critical Strikes 4 | . 2 1 . 1 Burn 4 | . 2 1 . 1 Melee Attacks . | . . . . . Impact . | . . . . . Slashing . | . . . . . Piercing . | . . . . . Sneak Attacks . | . . . . . Combat Hostiles . | . . . . . Follow-up Attacks . | . . . . . Damage Inflicted 533 | . 136 172 . 225 Guns 415 | . 136 159 . 120 Cannons 97 | . . . . 97 Explosions . | . . . . . Melee . | . . . . . Ramming 21 | . . 13 . 8 Kinetic 127 | . 23 58 . 46 Thermal 288 | . 113 101 . 74 Explosive . | . . . . . Electromagnetic 97 | . . . . 97 Impact . | . . . . . Slashing . | . . . . . Piercing . | . . . . . Highest Corruption 10 | . 2 2 2 10 Average Corruption 2 | . 2 2 2 2 Corruption Purged . | . . . . . Corruption Blocked . | . . . . . Effects 13 | . 2 3 2 6 Message Errors 4 | . 1 . 1 2 Matter Fused 2 | . . 1 . 1 Heat Flow Errors 2 | . . . 1 1 Energy Discharges 2 | . 1 . . 1 Data Loss (minor) 2 | . . 1 . 1 Misfires 1 | . . 1 . . Overload Shots . | . . . . . Overflow Damage . | . . . . . Projectiles . | . . . . . Explosions . | . . . . . Melee . | . . . . . Knockbacks . | . . . . . Impact . | . . . . . Kinetic . | . . . . . Secondary . | . . . . . Self-Inflicted Damage . | . . . . . Shots . | . . . . . Rammed . | . . . . . Targets Rammed 4 | . . 3 . 1 Kicked 4 | . . 3 . 1 Crushed . | . . . . . Highest Temperature 318 | . 80 318 237 241 Average Temperature 119 | . 40 166 126 123 Received Heat Transfer 207 | . . 147 . 60 Siege Activations . | . . . . . Robots Corrupted . | . . . . . Combat Hostiles . | . . . . . Parts Fried . | . . . . . Impact Corruptions . | . . . . . Robots Melted . | . . . . . Combat Hostiles . | . . . . . Parts Melted 1 | . . 1 . . Heat Transferred 1147 | . 481 370 . 296 Parts Sabotaged . | . . . . . Parts Stolen . | . . . . . Parts Stripped . | . . . . . Power Chain Reactions . | . . . . . Alert | -11 -10 -10 -10 -9 ------- Run | Yrd Mat Min Exi Min Peak Influence 105 | . 105 80 . 95 Initial 40 | . . 40 . . Average 60 | . 61 71 . 53 Maximum Alert Level . | . . . . . Low Security (%) 100 | . 100 100 . 100 Level 1 . | . . . . . Level 2 . | . . . . . Level 3 . | . . . . . Level 4 . | . . . . . Level 5 . | . . . . . High Security . | . . . . . Max Security . | . . . . . Squads Dispatched 1 | . 1 . . . Investigation 1 | . 1 . . . Extermination . | . . . . . Reinforcement . | . . . . . Assault . | . . . . . Garrison . | . . . . . Intercept . | . . . . . Searches Triggered . | . . . . . Construction Impeded . | . . . . . Haulers Reinforced . | . . . . . Active Scanning Responses . | . . . . . Cargo Convoy Interrupts . | . . . . . Stealth | -11 -10 -10 -10 -9 --------- Run | Yrd Mat Min Exi Min Distress Signals . | . . . . . Communications Jammed . | . . . . . Distress Signals . | . . . . . Times Spotted 24 | . 5 2 . 17 Peak Tracking Total 17 | . 3 2 . 17 Tactical Retreats 1 | . . . . 1 Traps | -11 -10 -10 -10 -9 ------- Run | Yrd Mat Min Exi Min Traps Triggered 2 | . 2 . . . Indirectly . | . . . . . Trap Hack Attempts . | . . . . . Triggered . | . . . . . Disarmed . | . . . . . Reprogrammed . | . . . . . Reused . | . . . . . Traps Extracted . | . . . . . Installed . | . . . . . Triggered . | . . . . . Machines | -11 -10 -10 -10 -9 ---------- Run | Yrd Mat Min Exi Min Machines Disabled . | . . . . . Max in Single Turn . | . . . . . Machines Repaired . | . . . . . Machines Dismantled . | . . . . . Machines Sabotaged . | . . . . . Overloaded Fab Kills . | . . . . . Hacking | -11 -10 -10 -10 -9 --------- Run | Yrd Mat Min Exi Min Machines Accessed 3 | . 2 . 1 . Terminals 2 | . 2 . . . Fabricators . | . . . . . Repair Stations . | . . . . . Recycling Units . | . . . . . Scanalyzers . | . . . . . Garrison Access . | . . . . . Total Hacks 8 | . 7 . 1 . Successful 5 | . 4 . 1 . Failed 3 | . 3 . . . Catastrophic 1 | . 1 . . . Database Lockouts . | . . . . . Manual 7 | . 6 . 1 . Terminals 7 | . 7 . . . Fabricators . | . . . . . Repair Stations . | . . . . . Recycling Units . | . . . . . Scanalyzers . | . . . . . Garrison Access . | . . . . . Terminal Hacks 3 | . 2 . 1 . Prototype ID Bank 1 | . 1 . . . Branch Access Points 1 | . 1 . . . Derelict Proto ID Bank 1 | . . . 1 . Fabricator Hacks . | . . . . . Repair Station Hacks . | . . . . . Recycling Unit Hacks . | . . . . . Scanalyzer . | . . . . . Garrison Access Hacks . | . . . . . Unauthorized Hacks 2 | . 2 . . . Terminals 2 | . 2 . . . Botnet 2 | . 2 . . . Fabricators . | . . . . . Repair Stations . | . . . . . Recycling Units . | . . . . . Scanalyzers . | . . . . . Garrison Access . | . . . . . Data Cores Recovered . | . . . . . Used . | . . . . . Hacking Detections 2 | . 2 . . . Full Trace Events . | . . . . . Feedback Events . | . . . . . Feedback Blocked . | . . . . . Robot Schematics Acquired . | . . . . . Robots Built . | . . . . . Authchips . | . . . . . Time . | . . . . . Total Robot Build Rating . | . . . . . Part Schematics Acquired . | . . . . . Parts Built . | . . . . . Authchips . | . . . . . Time . | . . . . . Total Part Build Rating . | . . . . . Parts Repaired . | . . . . . Time . | . . . . . Parts Recycled . | . . . . . Recycled Matter . | . . . . . Retrieved Matter . | . . . . . Retrieved Components . | . . . . . Parts Scanalyzed . | . . . . . Part Schematics Acquired . | . . . . . Parts Damaged . | . . . . . Bothacking | -11 -10 -10 -10 -9 ------------ Run | Yrd Mat Min Exi Min Used RIF Installer . | . . . . . Robots Hacked . | . . . . . Non-combat . | . . . . . Combat . | . . . . . Robot Hacks Applied . | . . . . . Relay Couplers Released . | . . . . . Fabnet Peak Effective % . | . . . . . Robots Rewired . | . . . . . Allies Hacked . | . . . . . Hacks Repelled . | . . . . . Allies | -11 -10 -10 -10 -9 -------- Run | Yrd Mat Min Exi Min Total Allies . | . . . . . Largest Group . | . . . . . Highest-Rated Group . | . . . . . Highest-Rated Ally . | . . . . . Total Orders . | . . . . . Ally Attacks . | . . . . . Total Damage . | . . . . . Kills . | . . . . . Allies Corrupted . | . . . . . Allies Melted . | . . . . . Intel | -11 -10 -10 -10 -9 ------- Run | Yrd Mat Min Exi Min Robot Analysis Total . | . . . . . Derelict Logs Recovered 2 | . . . . 2 Drone Launches . | . . . . . Drone Recoveries . | . . . . . Exploration | -11 -10 -10 -10 -9 ------------- Run | Yrd Mat Min Exi Min Turns Passed 1184 | . 296 251 256 381 Spaces Moved 888 | 1 217 163 213 294 Core 9 | . . . . 9 Treads . | . . . . . Legs 789 | 1 217 163 213 195 Wheels 90 | . . . . 90 Hover . | . . . . . Flight . | . . . . . Fastest Speed 50 | 120 120 120 120 50 Average Speed 116 | 120 120 120 120 108 Slowest Speed 120 | 120 120 120 120 120 Overloaded Moves . | . . . . . Propulsion Burnouts . | . . . . . Robots Hopped . | . . . . . Cave-ins Triggered . | . . . . . Exploration Rate (%) 39 | 2 44 31 61 60 Regions Visited 4 Branch Regions 3 Pre-discovered Areas 1 | . . . . 1 Known Exits Taken 1 | . 1 . . . Unknown Exits Taken 3 | 1 . 1 1 . Scrap Searched 2 | . . . . 2 Spaces Dug . | . . . . . Terrain Destroyed . | . . . . . Melee . | . . . . . Projectile . | . . . . . AOE . | . . . . . Terrain Rammed . | . . . . . Walls Destroyed . | . . . . . Machines Disabled . | . . . . . Actions | -11 -10 -10 -10 -9 --------- Run | Yrd Mat Min Exi Min Total 971 | . 235 194 214 328 Wait 17 | . . 11 . 6 Move 884 | . 216 162 212 294 Hop . | . . . . . Pick Up 5 | . 4 . 1 . Fast Attach 3 | . 1 . . 2 Attach 5 | . . 1 . 4 Detach 1 | . . . . 1 Swap 4 | . 2 2 . . Drop 10 | . 3 2 1 4 Fire 38 | . 9 13 . 16 Melee . | . . . . . Ram . | . . . . . Kick 4 | . . 3 . 1 Crush . | . . . . . Escape Stasis . | . . . . . Rewire . | . . . . . Trap . | . . . . . Miscellaneous . | . . . . . Route ------- -11/Scrapyard -10/Materials (discovered 2 exits: [*Mat] / *Min) -10/Mines (discovered 2 exits: [*Mat] / *Exi) -10/Exiles -9/Mines History --------- Turn | Location | Event 1 | -11/Scrapyard | Discovered new exit (range 0) 1 | -11/Scrapyard | Entered Materials 78 | -10/Materials | Discovered new exit (range 11) 139 | -10/Materials | Identified exit to Mines 297 | -10/Materials | Entered Mines 311 | -10/Mines | Build established: Mutant 502 | -10/Mines | Discovered new exit (range 5) 542 | -10/Mines | Deemed a non-threat by the Exiles lab entrance 543 | -10/Mines | Discovered new exit (range 5) 548 | -10/Mines | Entered Exiles 577 | -10/Exiles | Met 8R-AWN 598 | -10/Exiles | Met EX-HEX 636 | -10/Exiles | Met EX-BIN 649 | -10/Exiles | Aligned with FarCom system 650 | -10/Exiles | Given EX-Vault access code 680 | -10/Exiles | Opened EX-Vault 687 | -10/Exiles | Found Latent Energy Streamer 714 | -10/Exiles | Warned to stay clear of 0b10 Research branches 749 | -10/Exiles | Met EX-DEC 791 | -10/Exiles | Discovered new exit (range 12) 804 | -10/Exiles | Left Exiles lab with Latent Energy Streamer 804 | -10/Exiles | Entered Mines 805 | -9/Mines | Met a Derelict bent on vengeance 1063 | -9/Mines | Learned Materials garrison access intel 1151 | -9/Mines | Assembled infested the area 1179 | -9/Mines | Core integrity fell below 50% 1181 | -9/Mines | System corruption reached 10% 1181 | -9/Mines | Released all parts (4) 1184 | -9/Mines | Core integrity fell below 20% 1185 | -9/Mines | Destroyed by as-39219 with Assembled Rifle Last Messages --------------- 01121_ 1T-EE5(g): "TASTE MY VENGEANCE!" 01151_ ALERT: Infestation in the mines, dispatching Demolisher response squad. 01155_ as-55312 sneak attacks. 01155_ U-05 Engineer destroyed. 01164_ Destroyed Asb. Hover Unit. 01167_ as-43744 destroyed. 01179_ Lgt. Armor Plating destroyed. 01180_ Acquired 1 matter. 01180_ Wheel destroyed. 01180_ Lgt. Assault Rifle destroyed. 01180_ System corrupted by crushing effect (+5). 01180_ System corrupted by crushing effect (+3). 01181_ Released Lgt. EM Pulse Cannon. 01181_ Released Com. Wheel. 01181_ Released Med. Storage Unit. 01181_ Released Lgt. Ion Engine. 01182_ System corrupted: Component data lost. [Achievement: This Is Interesting...] [Achievement: Tester] Map ----- +----------------------------------------------------+ | ######### #???????????????????????????? | | #???????????????????????????? | | ##???????????????????????????? | | ### ###### ###????????????????????????????? | | #?# #?## ##??????????????????????????????? | | ??# ### #???????????????????????????????? | | ?## #???????????????????????????????? | | ## ##???????????????????????????????? | | # #????????????????????????????????? | | #????????????????????????????????? | | #????????????????????????????????? | | ## #????????????????????????????????? | | ###### ##????????????????????????????????? | | #????## #?????????????????????????????????? | | #????# ##??????#####?????????????????????? | | ##???# #??????# ##????????????????????? | | #???# ####### ##???????????????????? | | #???# ## !%= ##????????? ????????? | | #???# *= #???????? ????????? | | ##???# """ ##????? ????????? | | ##????## """ ! ##### ???????? | | ##??????#### """ |%! ?????????? | | ##??????????### a = ???????????? | | ##????????????## aaa #????????????????? | | ##???????????## #????????????????? | | #???????????# ##@ #????????????????? | | #?????###???# ] #### ##????????????????? | | #?????# #?##=%* ####???a #?????????????????? | | ###?????# ## ! ##??????? #?????????????????? | | ????????# ##???????? #?????????????????? | | ????????# #??????????#?????????????????? | | ????????# ##????????????????????????????? | | ????????## ##?????????????????????????????? | | ?????????## ###??????????????????????????????? | | ??????????####????????????????????????????????? | | ??????????????????????????????????????????????? | | ??????????????????????????????????????????????? | | ######????????????????????????????????????????? | | # ##???????????????????????????????????????? | | #???????????????????????????????????????? | | #???????????????????????????????????????? | | ##???????????????????????????????????????? | | ##????????????????????????????????????????? | | # ##?????????????????????????????????????????? | | # ##??????????????????????????????????????????? | | # #???????????????????????????????????????????? | | # #???????????????????????????????????????????? | | # #???????????????????????????????????????????? | | # ####????????????????????????????????????????? | | # #????????????????????????????????????????? | +----------------------------------------------------+ Best States ------------- Heat Dissipation 25 Energy Generation 10 Energy Capacity 250 Matter Stores 300 Matter Capacity 300 Sight Range 16 Terrain Scan Density 10 Armor Coverage 150 Evasion (%) 55 Item Schematics ----------------- None Robot Schematics ------------------ None Fabricated ------------ Nothing Alien Tech Used ----------------- None Achievements -------------- Tester This Is Interesting... Challenges ------------ None Game ------ Seed PulseScanClaws Manual? 0 Play Time 00:09:38 Cumulative 76.5 hours Start 2024.11.18 @ 16:58:01 End 2024.11.18 @ 17:07:30 Sessions 1 Manual Loads 0 Difficulty Rogue Special Mode None Game No. 54 Rogue 54 Adventurer 0 Explorer 0 Win Type - Total 1 Types 1/0/0/0/0/0/0/0/0 Lore% 25 Gallery% 50 Achievement% 42 Wizard Run 0 Options --------- Layout 0 ASCII 0 Keyboard 0 Movement Arrows Keybinds 0 Fullscreen 2 Font 18/X11 Map View 76x50 Zoom Use 0% Tactical HUD 1 Map Filters NONE Filters NONE Steam 0 RUN: b1708bd2-a3a1-4d74-8adc-28fb2802c14c